fUSD/lending_fUSD_20240628
["ID","MTS","AMOUNT","RATE_DAILY","PERIOD"]
[330511753,1719541846325,-500.0,0.00021917,3]
[330511754,1719541846335,-1766.68,0.00021917,3]
[330511755,1719541846344,-500.0,0.00021917,3]
[330511756,1719541846357,-500.0,0.00021917,3]
[330511757,1719541846366,-500.0,0.00021917,3]
[330511758,1719541846374,-1027.01,0.00021917,3]
[330511759,1719541846387,-500.0,0.00021917,3]
[330511760,1719541846397,-637.48,0.00021917,3]
[330511761,1719541846407,-3574.93,0.00021917,3]
[330511762,1719541846416,-500.0,0.00021917,3]
[330511763,1719541846426,-500.0,0.00021917,3]
[330511764,1719541846435,-500.0,0.00021917,3]
[330511765,1719541846445,-954.88,0.00021917,3]
[330511766,1719541846455,-524.90272587,0.00021917,3]
[330511767,1719541846464,-500.0,0.00021917,3]
[330511768,1719541846475,-500.0,0.00021917,3]
[330511769,1719541846484,-626.13,0.00021917,3]
[330511770,1719541846494,-500.0,0.00021917,3]
[330511771,1719541846503,-2302.9,0.00021917,3]
[330511772,1719541846513,-500.0,0.00021917,3]
[330511773,1719541846522,-1073.58,0.00021917,3]
[330511774,1719541846532,-500.0,0.00021917,3]
[330511775,1719541846543,-1197.21,0.00021917,3]
[330511776,1719541846553,-500.0,0.00021917,3]
[330511777,1719541846563,-179.51287659,0.00021917,3]
[330511778,1719541846574,-830.39,0.00021917,3]
[330511779,1719541846583,-500.0,0.00021917,3]
[330511780,1719541846593,-500.0,0.00021917,3]
[330511781,1719541846604,-500.0,0.00021917,3]
[330511782,1719541846613,-500.0,0.00021917,3]
[330511783,1719541846622,-500.0,0.00021917,3]
[330511784,1719541846631,-500.0,0.00021917,3]
[330511785,1719541846640,-598.78,0.00021917,3]
[330511786,1719541846651,-967.5,0.00021917,3]
[330511787,1719541846660,-490.77346299,0.00021917,3]
[330511788,1719541846669,-809.87,0.00021917,3]
[330511789,1719541846679,-3956.82,0.00021917,3]
[330511790,1719541846688,-500.0,0.00021917,3]
[330511791,1719541846697,-500.0,0.00021917,3]
[330511792,1719541846706,-500.0,0.00021917,3]
[330511793,1719541846716,-1238.82,0.00021917,3]
[330511794,1719541846725,-500.0,0.00021917,3]
[330511795,1719541846735,-500.0,0.00021917,3]
[330511796,1719541846745,-1330.35,0.00021917,3]
[330511797,1719541846755,-1212.29,0.00021917,3]
[330511798,1719541846764,-786.53,0.00021917,3]
[330511799,1719541846774,-500.0,0.00021917,3]
[330511800,1719541846784,-500.0,0.00021917,3]
[330511801,1719541846793,-1205.38,0.00021917,3]
[330511802,1719541846802,-500.0,0.00021917,3]
[330511803,1719541846811,-500.0,0.00021917,3]
[330511804,1719541846820,-500.0,0.00021917,3]
[330511805,1719541846830,-500.0,0.00021917,2]
[330511806,1719541846839,-885.46,0.00021917,3]
[330511807,1719541846850,-1016.46,0.00021917,3]
[330511808,1719541846859,-500.0,0.00021917,3]
[330511809,1719541846868,-2406.06,0.00021917,3]
[330511810,1719541846878,-500.0,0.00021917,3]
[330511811,1719541846888,-500.0,0.00021917,3]
[330511812,1719541846897,-2205.88,0.00021917,3]
[330511813,1719541846907,-1418.04,0.00021917,3]
[330511814,1719541846916,-500.0,0.00021917,3]
[330511815,1719541846925,-500.0,0.00021917,3]
[330511816,1719541846934,-2662.08,0.00021917,3]
[330511817,1719541846944,-500.0,0.00021917,3]
[330511818,1719541846954,-500.0,0.00021917,3]
[330511819,1719541846963,-500.0,0.00021917,3]
[330511820,1719541846973,-500.0,0.00021917,3]
[330511821,1719541846982,-500.0,0.00021917,3]
[330511822,1719541846992,-3746.03,0.00021917,3]
[330511823,1719541847002,-500.0,0.00021917,3]
[330511824,1719541847011,-500.0,0.00021917,3]
[330511825,1719541847023,-500.0,0.00021917,3]
[330511826,1719541847033,-371.53300938,0.00021917,3]
[330511827,1719541847042,-500.0,0.00021917,3]
[330511828,1719541847051,-688.49,0.00021917,3]
[330511829,1719541847062,-1276.86,0.00021917,3]
[330511830,1719541847071,-542.61,0.00021917,3]
[330511831,1719541847081,-1787.07,0.00021917,3]
[330511832,1719541847091,-1650.63,0.00021917,3]
[330511833,1719541847379,-1172.96,0.00021917,3]
[330511834,1719541847396,-500.0,0.00021917,3]
[330511835,1719541847406,-500.0,0.00021917,3]
[330511836,1719541847416,-500.0,0.00021917,3]
[330511837,1719541847426,-1330.03,0.00021917,3]
[330511838,1719541847435,-500.0,0.00021917,3]
[330511839,1719541847445,-500.0,0.00021917,3]
[330511840,1719541847456,-851.41,0.00021917,3]
[330511841,1719541847465,-1725.79,0.00021917,3]
[330511842,1719541847476,-625.69,0.00021917,3]
[330511843,1719541847486,-1169.35,0.00021917,3]
[330511844,1719541847496,-500.0,0.00021917,3]
[330511845,1719541847506,-501.02,0.00021917,3]
[330511846,1719541847516,-500.0,0.00021917,3]
[330511847,1719541847525,-500.0,0.00021917,3]
[330511848,1719541847535,-2140.27,0.00021917,3]
[330511849,1719541847545,-595.58,0.00021917,3]
[330511850,1719541847555,-500.0,0.00021917,3]
[330511851,1719541847565,-1333.53,0.00021917,3]
[330511852,1719541847575,-789.62,0.00021917,3]
[330511853,1719541847584,-919.43,0.00021917,3]
[330511854,1719541847594,-1032.54,0.00021917,3]
[330511855,1719541847606,-500.0,0.00021917,3]
[330511856,1719541847616,-1058.8,0.00021917,3]
[330511857,1719541847625,-2487.54,0.00021917,3]
[330511858,1719541847635,-1381.16,0.00021917,3]
[330511859,1719541847645,-500.0,0.00021917,3]
[330511860,1719541847655,-500.0,0.00021917,3]
[330511861,1719541847664,-692.79,0.00021917,3]
[330511862,1719541847674,-960.25,0.00021917,3]
[330511863,1719541847684,-692.79,0.00021917,3]
[330511864,1719541847694,-500.0,0.00021917,3]
[330511865,1719541847703,-692.79,0.00021917,3]
[330511866,1719541847713,-692.79,0.00021917,3]
[330511867,1719541847723,-692.79,0.00021917,3]
[330511868,1719541847733,-692.79,0.00021917,3]
[330511869,1719541847743,-692.79,0.00021917,3]
[330511870,1719541847752,-500.0,0.00021917,3]
[330511871,1719541847762,-692.79,0.00021917,3]
[330511872,1719541847771,-692.79,0.00021917,3]
[330511873,1719541847781,-692.79,0.00021917,3]
[330511874,1719541847791,-500.0,0.00021917,3]
[330511875,1719541847800,-692.79,0.00021917,3]
[330511876,1719541847810,-692.79,0.00021917,3]
[330511877,1719541847820,-1214.14,0.00021917,3]
[330511878,1719541847830,-692.79,0.00021917,3]
[330511879,1719541847840,-500.0,0.00021917,3]
[330511880,1719541847850,-692.79,0.00021917,3]
[330511881,1719541847859,-500.0,0.00021917,3]
[330511882,1719541847869,-500.0,0.00021917,3]
[330511883,1719541847879,-692.79,0.00021917,3]
[330511884,1719541847888,-692.79,0.00021917,3]
[330511885,1719541847898,-1283.8,0.00021917,3]
[330511886,1719541847907,-692.79,0.00021917,3]
[330511887,1719541847917,-692.79,0.00021917,3]
[330511888,1719541847927,-692.79,0.00021917,3]
[330511889,1719541847936,-692.79,0.00021917,3]
[330511890,1719541847946,-692.79,0.00021917,3]
[330511891,1719541847955,-692.79,0.00021917,3]
[330511892,1719541847964,-692.79,0.00021917,3]
[330511893,1719541847974,-692.79428691,0.00021917,3]
[330511894,1719541847983,-1395.67,0.00021917,3]
[330511895,1719541847992,-1038.84,0.00021917,3]
[330511896,1719541848002,-500.0,0.00021917,3]
[330511897,1719541848011,-799.98,0.00021917,3]
[330511898,1719541848023,-938.25,0.00021917,3]
[330511899,1719541848033,-500.0,0.00021917,3]
[330511900,1719541848043,-500.0,0.00021917,3]
[330511901,1719541848053,-1829.19,0.00021917,3]
[330511902,1719541848063,-500.0,0.00021917,3]
[330511903,1719541848072,-500.0,0.00021917,3]
[330511904,1719541848083,-500.0,0.00021917,3]
[330511905,1719541848094,-802.84,0.00021917,3]
[330511906,1719541848106,-500.0,0.00021917,3]
[330511907,1719541848115,-500.0,0.00021917,3]
[330511908,1719541848125,-500.0,0.00021917,3]
[330511909,1719541848135,-1561.95,0.00021917,3]
[330511910,1719541848144,-500.0,0.00021917,3]
[330511911,1719541848154,-500.0,0.00021917,3]
[330511912,1719541848163,-500.0,0.00021917,3]
[330511913,1719541848173,-500.0,0.00021917,3]
[330511914,1719541848183,-500.0,0.00021917,3]
[330511915,1719541848192,-616.93,0.00021917,3]
[330511916,1719541848202,-513.01,0.00021917,3]
[330511917,1719541848212,-500.0,0.00021917,3]
[330511918,1719541848221,-1517.6,0.00021917,3]
[330511919,1719541848230,-500.0,0.00021917,3]
[330511920,1719541848240,-500.0,0.00021917,3]
[330511921,1719541848250,-500.0,0.00021917,3]
[330511922,1719541848261,-500.0,0.00021917,3]
[330511923,1719541848271,-500.0,0.00021917,3]
[330511924,1719541848281,-500.0,0.00021917,3]
[330511925,1719541848291,-500.0,0.00021917,3]
[330511926,1719541848300,-500.0,0.00021917,3]
[330511927,1719541848309,-500.0,0.00021917,3]
[330511928,1719541848319,-391.11284765,0.00021917,3]
[330511929,1719541848328,-500.0,0.00021917,3]
[330511930,1719541848338,-500.0,0.00021917,3]
[330511931,1719541848347,-11553.69,0.00021917,3]
[330511932,1719541848359,-1029.42,0.00021917,3]
[330511933,1719541848369,-500.0,0.00021917,3]
[330511934,1719541848379,-500.0,0.00021917,3]
[330511935,1719541848388,-1271.58,0.00021917,3]
[330511936,1719541848398,-500.0,0.00021917,3]
[330511937,1719541848407,-1765.79,0.00021917,3]
[330511938,1719541848416,-2528.8,0.00021917,3]
[330511939,1719541848426,-583.83147994,0.00021917,3]
[330511940,1719541848435,-500.0,0.00021917,3]
[330511941,1719541848444,-500.0,0.00021917,3]
[330511942,1719541848454,-500.0,0.00021917,3]
[330511943,1719541848464,-500.0,0.00021917,3]
[330511944,1719541848475,-500.0,0.00021917,3]
[330511945,1719541848484,-232.23579211,0.00021917,3]
[330511946,1719541848494,-720.61,0.00021917,3]
[330511947,1719541848503,-500.0,0.00021917,3]
[330511948,1719541848513,-500.0,0.00021917,3]
[330511949,1719541848523,-500.0,0.00021917,3]
[330511950,1719541848532,-655.08,0.00021917,3]
[330511951,1719541848542,-587.85,0.00021917,3]
[330511952,1719541848552,-500.0,0.00021917,3]
[330511953,1719541848562,-500.0,0.00021917,3]
[330511954,1719541848571,-500.0,0.00021917,3]
[330511955,1719541848581,-1453.39,0.00021917,3]
[330511956,1719541848590,-1742.68,0.00021917,3]
[330511957,1719541848601,-500.0,0.00021917,3]
[330511958,1719541848611,-806.74,0.00021917,3]
[330511959,1719541848620,-500.0,0.00021917,3]
[330511960,1719541848629,-500.0,0.00021917,3]
[330511961,1719541848639,-500.0,0.00021917,3]
[330511962,1719541848648,-965.52,0.00021917,3]
[330511963,1719541848658,-501.39,0.00021917,3]
[330511964,1719541848667,-1143.04,0.00021917,3]
[330511965,1719541848677,-500.0,0.00021917,3]
[330511966,1719541848686,-1475.54,0.00021917,3]
[330511967,1719541848696,-500.0,0.00021917,3]
[330511968,1719541848705,-933.53,0.00021917,3]
[330511969,1719541848715,-500.0,0.00021917,3]
[330511970,1719541848725,-500.0,0.00021917,3]
[330511971,1719541848734,-500.0,0.00021917,3]
[330511972,1719541848744,-1276.38,0.00021917,3]
[330511973,1719541848753,-500.0,0.00021917,3]
[330511974,1719541848763,-710.46,0.00021917,3]
[330511975,1719541848772,-500.0,0.00021917,3]
[330511976,1719541848782,-500.0,0.00021917,3]
[330511977,1719541848791,-500.0,0.00021917,3]
[330511978,1719541848801,-500.0,0.00021917,3]
[330511979,1719541848810,-500.0,0.00021917,3]
[330511980,1719541848820,-588.17,0.00021917,3]
[330511981,1719541848830,-18989.87,0.00021917,3]
[330511982,1719541848839,-500.0,0.00021917,3]
[330511983,1719541848852,-528.62715713,0.00021917,3]
[330511984,1719541848861,-500.0,0.00021917,3]
[330511985,1719541848869,-500.0,0.00021917,3]
[330511986,1719541848879,-525.23952068,0.00021917,3]
[330511987,1719541848888,-500.0,0.00021917,3]
[330511988,1719541848897,-500.0,0.00021917,3]
[330511989,1719541848907,-538.30319201,0.00021917,3]
[330511990,1719541848917,-2256.36,0.00021917,3]
[330511991,1719541848928,-1281.0,0.00021917,3]
[330511992,1719541848937,-500.0,0.00021917,3]
[330511993,1719541848948,-500.0,0.00021917,3]
[330511994,1719541848957,-500.0,0.00021917,3]
[330511995,1719541848967,-500.0,0.00021917,3]
[330511996,1719541848976,-500.0,0.00021917,3]
[330511997,1719541848986,-500.0,0.00021917,3]
[330511998,1719541848995,-891.29,0.00021917,3]
[330511999,1719541849005,-2221.8,0.00021917,3]
[330512000,1719541849016,-500.0,0.00021917,3]
[330512001,1719541849033,-500.0,0.00021917,3]
[330512002,1719541849042,-539.85,0.00021917,3]
[330512003,1719541849052,-241.86038007,0.00021917,3]
[330512004,1719541849061,-500.0,0.00021917,3]
[330512005,1719541849071,-500.0,0.00021917,3]
[330512006,1719541849080,-500.0,0.00021917,3]
[330512007,1719541849089,-500.0,0.00021917,3]
[330512008,1719541849098,-500.0,0.00021917,3]
[330512009,1719541849110,-513.12321817,0.00021917,3]
[330512010,1719541849120,-500.0,0.00021917,3]
[330512011,1719541849129,-500.0,0.00021917,3]
[330512012,1719541849139,-500.0,0.00021917,3]
[330512013,1719541849149,-500.0,0.00021917,3]
[330512014,1719541849159,-1139.55,0.00021917,3]
[330512015,1719541849168,-500.0,0.00021917,3]
[330512016,1719541849178,-500.0,0.00021917,3]
[330512017,1719541849188,-500.0,0.00021917,3]
[330512018,1719541849198,-738.14,0.00021917,3]
[330512019,1719541849207,-500.0,0.00021917,3]
[330512020,1719541849218,-500.0,0.00021917,3]
[330512021,1719541849227,-500.0,0.00021917,3]
[330512022,1719541849237,-500.0,0.00021917,3]
[330512023,1719541849247,-500.0,0.00021917,3]
[330512024,1719541849257,-500.0,0.00021917,3]
[330512025,1719541849266,-500.0,0.00021917,3]
[330512026,1719541849276,-500.0,0.00021917,3]
[330512027,1719541849285,-500.0,0.00021917,3]
[330512028,1719541849295,-500.0,0.00021917,3]
[330512029,1719541849304,-500.0,0.00021917,3]
[330512030,1719541849314,-500.0,0.00021917,3]
[330512031,1719541849323,-500.0,0.00021917,3]
[330512032,1719541849332,-837.73,0.00021917,3]
[330512033,1719541849342,-3475.4,0.00021917,3]
[330512034,1719541849352,-500.0,0.00021917,3]
[330512035,1719541849363,-500.0,0.00021917,3]
[330512036,1719541849371,-500.0,0.00021917,3]
[330512037,1719541849380,-500.0,0.00021917,3]
[330512038,1719541849393,-500.0,0.00021917,3]
[330512039,1719541849403,-500.0,0.00021917,3]
[330512040,1719541849413,-1146.05,0.00021917,3]
[330512041,1719541849423,-500.0,0.00021917,3]
[330512042,1719541849432,-778.12,0.00021917,3]
[330512043,1719541849441,-36498.18,0.00021917,3]
[330512044,1719541849451,-1247.53,0.00021917,3]
[330512045,1719541849460,-201.02246127,0.00021917,3]
[330512046,1719541849470,-1468.56,0.00021917,3]
[330512047,1719541849480,-500.0,0.00021917,3]
[330512048,1719541849490,-1072.72,0.00021917,3]
[330512049,1719541849500,-585.12,0.00021917,3]
[330512050,1719541849523,-500.0,0.00021917,3]
[330512051,1719541849541,-500.0,0.00021917,3]
[330512052,1719541849557,-997.52,0.00021917,3]
[330512053,1719541849574,-500.0,0.00021917,3]
[330512054,1719541849593,-500.0,0.00021917,3]
[330512055,1719541849614,-1522.01,0.00021917,3]
[330512056,1719541849630,-500.0,0.00021917,3]
[330512057,1719541849646,-500.0,0.00021917,3]
[330512058,1719541849663,-500.0,0.00021917,3]
[330512059,1719541849677,-500.0,0.00021917,3]
[330512060,1719541849693,-500.0,0.00021917,3]
[330512061,1719541849709,-926.63,0.00021917,3]
[330512062,1719541849728,-715.47,0.00021917,3]
[330512063,1719541849744,-500.0,0.00021917,3]
[330512064,1719541849756,-500.0,0.00021917,3]
[330512065,1719541849771,-686.13,0.00021917,3]
[330512066,1719541849786,-500.0,0.00021917,3]
[330512067,1719541849800,-500.0,0.00021917,3]
[330512068,1719541849817,-595.2539236,0.00021917,3]
[330512069,1719541849830,-500.0,0.00021917,3]
[330512070,1719541849844,-543.9976429,0.00021917,3]
[330512071,1719541849860,-500.0,0.00021917,3]
[330512072,1719541849874,-1652.25,0.00021917,3]
[330512073,1719541849888,-500.0,0.00021917,3]
[330512074,1719541849901,-500.0,0.00021917,3]
[330512075,1719541849915,-919.42,0.00021917,3]
[330512076,1719541849929,-1724.95,0.00021917,3]
[330512077,1719541849943,-673.83,0.00021917,3]
[330512078,1719541849966,-500.0,0.00021917,2]
[330512079,1719541849979,-500.0,0.00021917,3]
[330512080,1719541849993,-500.0,0.00021917,3]
[330512081,1719541850007,-500.0,0.00021917,3]
[330512082,1719541850021,-500.0,0.00021917,3]
[330512083,1719541850038,-996.15,0.00021917,3]
[330512084,1719541850053,-500.0,0.00021917,3]
[330512085,1719541850069,-500.0,0.00021917,3]
[330512086,1719541850083,-500.0,0.00021917,3]
[330512087,1719541850097,-1163.63,0.00021917,3]
[330512088,1719541850115,-500.0,0.00021917,3]
[330512089,1719541850130,-500.0,0.00021917,3]
[330512090,1719541850143,-500.0,0.00021917,3]
[330512091,1719541850157,-500.0,0.00021917,3]
[330512092,1719541850170,-625.42,0.00021917,3]
[330512093,1719541850184,-500.0,0.00021917,3]
[330512094,1719541850198,-500.0,0.00021917,3]
[330512095,1719541850212,-500.0,0.00021917,3]
[330512096,1719541850225,-500.0,0.00021917,3]
[330512097,1719541850239,-19105.06,0.00021917,3]
[330512098,1719541850253,-500.0,0.00021917,3]
[330512099,1719541850267,-814.39,0.00021917,3]
[330512100,1719541850280,-500.0,0.00021917,3]
[330512101,1719541850294,-500.0,0.00021917,3]
[330512102,1719541850308,-500.0,0.00021917,3]
[330512103,1719541850322,-500.0,0.00021917,3]
[330512104,1719541850336,-500.0,0.00021917,3]
[330512105,1719541850350,-718.32,0.00021917,3]
[330512106,1719541850364,-576.90917034,0.00021917,3]
[330512107,1719541850378,-997.12,0.00021917,3]
[330512108,1719541850392,-605.75,0.00021917,3]
[330512109,1719541850407,-500.0,0.00021917,3]
[330512110,1719541850420,-6341.54,0.00021917,3]
[330512111,1719541850434,-692.77,0.00021917,3]
[330512112,1719541850448,-500.0,0.00021917,3]
[330512113,1719541850463,-604.67,0.00021917,3]
[330512114,1719541850478,-974.51,0.00021917,3]
[330512115,1719541850493,-500.0,0.00021917,3]
[330512116,1719541850507,-552.47836493,0.00021917,3]
[330512117,1719541850521,-554.77,0.00021917,3]
[330512118,1719541850534,-500.0,0.00021917,3]
[330512119,1719541850548,-931.76,0.00021917,3]
[330512120,1719541850562,-500.0,0.00021917,3]
[330512121,1719541850576,-500.0,0.00021917,3]
[330512122,1719541850589,-500.0,0.00021917,3]
[330512123,1719541850604,-500.0,0.00021917,3]
[330512124,1719541850618,-500.0,0.00021917,3]
[330512125,1719541850632,-548.58,0.00021917,3]
[330512126,1719541850646,-500.0,0.00021917,3]
[330512127,1719541850660,-1088.37,0.00021917,3]
[330512128,1719541850674,-500.0,0.00021917,3]
[330512129,1719541850688,-1555.71,0.00021917,3]
[330512130,1719541850702,-500.0,0.00021917,3]
[330512131,1719541850716,-774.8,0.00021917,3]
[330512132,1719541850730,-500.0,0.00021917,3]
[330512133,1719541850744,-500.0,0.00021917,3]
[330512134,1719541850758,-500.0,0.00021917,3]
[330512135,1719541850772,-627.22,0.00021917,3]
[330512136,1719541850786,-949.47,0.00021917,3]
[330512137,1719541850799,-566.87,0.00021917,3]
[330512138,1719541850813,-930.99,0.00021917,3]
[330512139,1719541850828,-688.17,0.00021917,3]
[330512140,1719541850842,-2826.53,0.00021917,3]
[330512141,1719541850856,-539.31,0.00021917,3]
[330512142,1719541850870,-500.0,0.00021917,3]
[330512143,1719541850884,-4550.24,0.00021917,3]
[330512144,1719541850898,-500.0,0.00021917,3]
[330512145,1719541850911,-499.62354729,0.00021917,3]
[330512146,1719541850924,-1449.33,0.00021917,3]
[330512147,1719541850938,-650.0,0.00021917,3]
[330512148,1719541850953,-500.0,0.00021917,3]
[330512149,1719541850966,-4307.73,0.00021917,3]
[330512150,1719541850980,-500.0,0.00021917,3]
[330512151,1719541850994,-584.65,0.00021917,3]
[330512152,1719541851007,-500.0,0.00021917,3]
[330512153,1719541851022,-527.28069731,0.00021917,3]
[330512154,1719541851037,-500.0,0.00021917,3]
[330512155,1719541851051,-1368.72,0.00021917,3]
[330512156,1719541851065,-1379.1,0.00021917,3]
[330512157,1719541851079,-1968.96,0.00021917,3]
[330512158,1719541851093,-1425.7,0.00021917,3]
[330512159,1719541851107,-500.0,0.00021917,3]
[330512160,1719541851120,-500.0,0.00021917,3]
[330512161,1719541851134,-500.0,0.00021917,3]
[330512162,1719541851147,-500.0,0.00021917,3]
[330512163,1719541851161,-2271.45,0.00021917,3]
[330512164,1719541851174,-500.0,0.00021917,3]
[330512165,1719541851188,-500.0,0.00021917,3]
[330512166,1719541851203,-2487.07,0.00021917,3]
[330512167,1719541851216,-500.0,0.00021917,3]
[330512168,1719541851229,-4223.66,0.00021917,3]
[330512169,1719541851243,-500.0,0.00021917,3]
[330512170,1719541851257,-3956.31,0.00021917,3]
[330512171,1719541851272,-500.0,0.00021917,3]
[330512172,1719541851286,-606.59223471,0.00021917,3]
[330512173,1719541851299,-500.0,0.00021917,3]
[330512174,1719541851313,-625.8,0.00021917,3]
[330512175,1719541851327,-1634.33,0.00021917,3]
[330512176,1719541851341,-1873.71,0.00021917,3]
[330512177,1719541851355,-500.0,0.00021917,3]
[330512178,1719541851368,-500.0,0.00021917,3]
[330512179,1719541851382,-608.54,0.00021917,3]
[330512180,1719541851396,-500.0,0.00021917,3]
[330512181,1719541851409,-500.0,0.00021917,3]
[330512182,1719541851423,-860.75,0.00021917,3]
[330512183,1719541851437,-500.0,0.00021917,3]
[330512184,1719541851451,-1766.63,0.00021917,3]
[330512185,1719541851463,-500.0,0.00021917,3]
[330512186,1719541851477,-1132.11,0.00021917,3]
[330512187,1719541851491,-882.46,0.00021917,3]
[330512188,1719541851506,-500.0,0.00021917,3]
[330512189,1719541851520,-1763.31,0.00021917,3]
[330512190,1719541851534,-3963.74,0.00021917,3]
[330512191,1719541851547,-2340.44,0.00021917,3]
[330512192,1719541851561,-3230.35,0.00021917,3]
[330512193,1719541851574,-7294.22,0.00021917,3]
[330512194,1719541851587,-5353.57,0.00021917,3]
[330512195,1719541851600,-551.88,0.00021917,3]
[330512196,1719541851615,-500.0,0.00021917,3]
[330512197,1719541851628,-500.0,0.00021917,3]
[330512198,1719541851641,-500.0,0.00021917,3]
[330512199,1719541851655,-500.0,0.00021917,3]
[330512200,1719541851669,-3537.06,0.00021917,3]
[330512201,1719541851682,-12539.27,0.00021917,3]
[330512202,1719541851696,-2115.45,0.00021917,3]
[330512203,1719541851709,-491.13357163,0.00021917,3]
[330512204,1719541851722,-2111.64,0.00021917,3]
[330512205,1719541851735,-848.76,0.00021917,3]
[330512206,1719541851748,-500.0,0.00021917,3]
[330512207,1719541851761,-500.0,0.00021917,3]
[330512208,1719541851774,-3635.47,0.00021917,3]
[330512209,1719541851787,-2082.75,0.00021917,3]
[330512210,1719541851800,-500.0,0.00021917,3]
[330512211,1719541851814,-2558.65,0.00021917,3]
[330512212,1719541851828,-500.0,0.00021917,3]
[330512213,1719541851842,-500.0,0.00021917,3]
[330512214,1719541851856,-324.61766043,0.00021917,2]
[330512215,1719541851870,-1809.28,0.00021917,3]
[330512216,1719541851885,-500.0,0.00021917,3]
[330512217,1719541851900,-500.0,0.00021917,3]
[330512218,1719541851913,-467.63118661,0.00021917,3]
[330512219,1719541853684,-299.38881339,0.00021917,3]
[330512220,1719541853693,-429.87407531,0.00021917,3]
[330512221,1719541853706,-934.50592469,0.00021917,3]
[330512222,1719541853716,-500.0,0.00021917,3]
[330512223,1719541853726,-1153.75,0.00021917,3]
[330512224,1719541853736,-500.0,0.00021917,3]
[330512225,1719541853746,-3000.11,0.00021917,3]
[330512226,1719541853756,-5197.36,0.00021917,3]
[330512227,1719541853766,-466.82216705,0.00021917,3]
[330512228,1719541853778,-383.48783295,0.00021917,3]
[330512229,1719541853788,-1227.22,0.00021917,3]
[330512230,1719541853797,-500.0,0.00021917,3]
[330512231,1719541853806,-500.0,0.00021917,3]
[330512232,1719541853815,-154.43149356,0.00021917,3]
[330512233,1719541853827,-4028.61850644,0.00021917,3]
[330512234,1719541853836,-454.76950596,0.00021917,3]
[330512235,1719541853847,-1002.41049404,0.00021917,3]
[330512236,1719541853856,-500.0,0.00021917,3]
[330512237,1719541853865,-500.0,0.00021917,3]
[330512238,1719541853875,-500.0,0.00021917,3]
[330512239,1719541853884,-1142.85,0.00021917,3]
[330512240,1719541853893,-3261.76,0.00021917,3]
[330512241,1719541853902,-2454.6,0.00021917,3]
[330512242,1719541853912,-500.0,0.00021917,3]
[330512243,1719541853921,-500.0,0.00021917,3]
[330512244,1719541853930,-980.71,0.00021917,3]
[330512245,1719541853940,-2002.86,0.00021917,3]
[330512246,1719541853950,-645.62,0.00021917,3]
[330512247,1719541853959,-3279.2,0.00021917,3]
[330512248,1719541853968,-608.45,0.00021917,3]
[330512249,1719541853976,-500.0,0.00021917,3]
[330512250,1719541853986,-1421.89,0.00021917,3]
[330512251,1719541853995,-1171.89,0.00021917,3]
[330512252,1719541854004,-745.61,0.00021917,3]